[Event "Bangabandhu Premier Div League 2022"]
[Site "Dhaka"]
[Date "2022.12.01"]
[Round "2.3"]
[White "Narayanan.S.L"]
[Black "Sakline Mostafa, Sajid"]
[Result "1-0"]
[ECO "D48"]
[WhiteElo "2673"]
[BlackElo "1951"]
[Annotator "TA"]
[PlyCount "91"]
[EventDate "2022.11.30"]
[EventType "team-tourn"]
[EventCountry "BAN"]
[SourceTitle "playchess.com"]
[Source "ChessBase"]
[SourceQuality "1"]
[TimeControl "40/5400+30:1800+30"]

{[%evp 20,91,59,65,92,43,61,50,126,118,129,129,128,86,135,117,118,117,130,149,214,215,286,283,265,268,251,257,270,270,268,233,252,239,400,379,377,369,448,453,545,429,418,427,415,352,618,316,318,313,318,330,699,337,323,315,327,317,327,322,375,375,447,445,449,482,466,474,530,525,515,515,515,513]} 1. d4 {[%emt 0:00:03]} d5 {[%emt 0:00:25]} 2. c4 {[%emt 0:00:11]} c6 {[%emt 0:00:10]} 3. Nf3 {[%emt 0:00:59]} Nf6 {[%emt 0:00:23]} 4. Nc3 {[%emt 0:00:11]} e6 {[%emt 0:00:42]} 5. e3 {[%emt 0:00:39]} Nbd7 {[%emt 0:00:58]} 6. Bd3 {[%emt 0:00:13]} dxc4 {[%emt 0:03:59]} 7. Bxc4 {[%emt 0:00:07]} b5 {[%emt 0:00:20]} 8. Bd3 {[%emt 0:00:06]} a6 {[%emt 0:01:46]} 9. e4 {[%emt 0:00:25]} c5 {[%emt 0:04:21]} 10. d5 {[%emt 0:00:12]} e5 {[%emt 0:05:28]} 11. b3 {[%emt 0:00:21]} Bd6 {[%emt 0:00:57] D48: Semi-Slav: Meran System: 7...b5 8 Bd3 a6.} 12. a4 $5 {[%emt 0:02:11][%mdl 4] A promising side line.} (12. Qc2 $16) 12... b4 {[%emt 0:06:36]} 13. Ne2 {[%emt 0:00:11]} O-O {[%emt 0:03:36] [#]} (13... c4 $1 $14 14. bxc4 (14. Bxc4 Nxe4 15. Qc2 Nef6 $11) 14... Rb8) 14. Ng3 $146 {[%emt 0:00:45]} ({Predecessor:} 14. Nd2 a5 15. Nc4 Nb6 16. Ng3 Nxc4 17. Bxc4 Ne8 18. O-O Qh4 19. Be3 f5 20. exf5 Bxf5 21. Nxf5 Rxf5 22. Bxc5 Bxc5 {0-1 (37) Antoshin,V-Sakharov,Y Tbilisi 1956}) 14... Nb6 {[%emt 0:06:01][%cal Ob6d5]} 15. O-O {[%emt 0:02:11]} Re8 {[%emt 0:01:10][%cal Ob6d5]} 16. Re1 {[%emt 0:00:55]} Ra7 {[%emt 0:09:17]} ({Better is} 16... c4) 17. a5 {[%emt 0:02:49]} Na8 {[%emt 0:06:55]} 18. Be3 {[%emt 0:08:53]} Nc7 {[%emt 0:10:22]} 19. Rc1 {[%emt 0:07:33] White is more active.} Qe7 {[%emt 0:07:23]} (19... Nd7 $16 20. Nf5 Bf8) 20. Qc2 $18 {[%emt 0:13:42]} Nb5 {[%emt 0:04:04]} 21. Bxb5 {[%emt 0:01:15]} (21. Bxc5 Na3 22. Bxd6 Nxc2 23. Bxe7 Nxe1 24. Nxe1 Raxe7 $16) 21... axb5 {[%emt 0:00:05]} 22. Bxc5 {[%emt 0:00:35]} Bxc5 {[%emt 0:00:30]} 23. Qxc5 {[%emt 0:00:30]} Qxc5 {[%emt 0:00:30]} 24. Rxc5 {[%emt 0:00:30]} Rxa5 {[%emt 0:00:30] [#]} 25. Nxe5 {[%emt 0:00:00][%mdl 512]} Ra3 {[%emt 0:02:38]} (25... h5 26. Nc4) 26. Rec1 {[%emt 0:11:23] Inhibits h5.} Ba6 {[%emt 0:01:49]} (26... Bd7 {was worth a try.}) 27. d6 {[%emt 0:01:31][%cal Bd5d6,Bd6d7][%mdl 32]} Rxb3 {[%emt 0:02:11]} 28. d7 {[%emt 0:00:21]} Rf8 {[%emt 0:00:26]} 29. Nf5 {[%emt 0:01:41] [#] White threatens Ne7+ and mate.} g6 {[%emt 0:05:03]} 30. Ne7+ {[%emt 0:01:10]} Kg7 {[%emt 0:00:11]} 31. N7c6 {[%emt 0:01:01]} Nxe4 {[%emt 0:02:52]} 32. R5c2 {[%emt 0:02:27]} (32. d8=B $2 Nxc5 33. Be7 Rc3 34. Rxc3 bxc3 $19) (32. d8=R $2 Rxd8 33. R5c2 Rd5 $19) 32... f6 $2 {[%emt 0:00:47]} (32... Ra3 33. Nxb4 (33. d8=N b3 $11) 33... Ng5) 33. Nf3 {[%emt 0:03:32] Threatens to win with Nfd4. Pair of Knights!} ({Not} 33. d8=B fxe5 34. f3 Nc3 $11) 33... Rd3 {[%emt 0:00:40]} 34. Nxb4 {[%emt 0:00:26]} Rd6 {[%emt 0:00:56]} 35. Rc6 {[%emt 0:00:11]} Bb7 $2 {[%emt 0:03:43]} (35... Rxd7 36. Nxa6 Rfd8) 36. Rc7 {[%emt 0:00:09]} (36. Rxd6 $142 Nxd6 37. Nd4) 36... Rd8 {[%emt 0:01:16]} 37. Rxb7 {[%emt 0:00:06]} R8xd7 {[%emt 0:00:09]} 38. Rxd7+ {[%emt 0:00:07]} (38. Rxb5 $2 {perishes.} Rd1+ 39. Ne1 Rxc1 $19) 38... Rxd7 {[%emt 0:00:06]} 39. Nc6 {[%emt 0:02:56]} Rc7 {[%emt 0:00:20]} 40. Nfd4 {[%emt 0:00:10] Ne6+ is the strong threat.} Kh6 {[%emt 0:00:33]} 41. Nxb5 {[%emt 0:30:11] White is clearly winning.} Rc8 {[%emt 0:30:03]} 42. f3 {[%emt 0:00:17]} Ng5 {[%emt 0:00:53]} 43. Nd6 {[%emt 0:00:22] Against Nf7} Rc7 {[%emt 0:00:09]} 44. Rc4 {[%emt 0:02:29]} Ne6 {[%emt 0:00:39]} 45. Ne8 {[%emt 0:02:12] Against f5} Rc8 {[%emt 0:00:37]} 46. Nxf6 {[%emt 0:00:21] Weighted Error Value: White=0.37/Black=0.49} 1-0

[Event "Bangabandhu Premier Div League 2022"]
[Site "Dhaka"]
[Date "2022.12.01"]
[Round "2.3"]
[White "Sankalan Shah"]
[Black "Kushagra Mohan"]
[Result "1/2-1/2"]
[ECO "A88"]
[WhiteElo "2218"]
[BlackElo "2390"]
[Annotator "TA"]
[PlyCount "82"]
[EventDate "2022.12.01"]
[EventCountry "BAN"]
[SourceTitle "playchess.com"]
[Source "ChessBase"]
[SourceQuality "1"]
[TimeControl "40/5400+30:1800+30"]

{[%evp 18,82,50,42,43,52,51,47,45,51,47,46,50,44,72,21,57,0,31,-16,-37,-62,-69,-85,-77,-77,0,0,42,34,44,-34,-38,-30,-37,-41,0,0,0,0,175,157,151,146,324,337,325,281,545,530,456,98,217,207,953,945,816,274,29981,29982,29980,29981,29994,91,96,96,75]} 1. d4 {[%emt 1:31:00]} f5 {[%emt 0:00:04]} 2. c4 {[%emt 0:00:30]} Nf6 {[%emt 0:00:05]} 3. Nf3 {[%emt 0:00:00]} g6 {[%emt 0:00:03]} 4. g3 {[%emt 0:01:00]} Bg7 {[%emt 0:00:01]} 5. Bg2 {[%emt 0:00:00]} O-O {[%emt 0:00:05]} 6. O-O {[%emt 0:00:00]} d6 {[%emt 0:00:04]} 7. Nc3 {[%emt 0:00:00]} Qe8 {[%emt 1:33:38]} 8. b3 {[%emt 0:02:00]} Na6 {[%emt 0:00:30]} 9. Ba3 {[%emt 0:00:30]} c6 {[%emt 0:00:30]} 10. Qc2 {[%emt 0:00:30]} Rb8 {[%emt 0:00:30] A88: Dutch Defence: Leningrad System: 5 Nf3 0-0 6 0-0 d6 7 Nc3 c6.} 11. e4 {[%emt 0:00:30]} fxe4 {[%emt 0:00:30]} 12. Nxe4 {[%emt 0:00:30]} Bf5 {[%emt 0:00:30] White is slightly better.} 13. Nxf6+ {[%emt 0:00:00]} Bxf6 {[%emt 0:00:30]} 14. Qd2 {[%emt 0:01:00]} b5 {[%emt 0:00:30]} 15. cxb5 {[%emt 0:00:30] [#]} cxb5 $146 {[%emt 0:00:30]} ({Predecessor:} 15... Rxb5 16. Rfe1 Qd7 17. Rac1 Nc7 18. Nh4 Nd5 19. Nxf5 gxf5 20. Bh3 e6 21. Re2 Rbb8 22. Rce1 Rfe8 23. Bg2 Rb5 {½-½ (23) De Francesco,K (2289)-Grimberg,B (2309) Bad Neustadt/Saale 2008}) 16. Qa5 {[%emt 0:00:30]} (16. Rac1 $16) 16... Rb6 {[%emt 0:00:30]} 17. Rad1 {[%emt 0:00:30]} (17. Bc1 $14) 17... Bc2 {[%emt 0:00:30]} 18. Rd2 {[%emt 0:00:00]} (18. Rc1 $14 {is more appropriate.} Be4 19. Qd2) 18... Be4 $11 19. Re1 {[%emt 0:01:00]} Qa8 {[%emt 0:01:00]} 20. Nh4 {[%emt 0:00:30][%cal Bf3h4,Bh4g2,Bg2e3][%mdl 32]} Bxg2 {[%emt 0:00:00]} 21. Nxg2 {[%emt 0:00:00]} Rc8 {[%emt 0:00:00]} ({Black should try} 21... b4 $17 22. Bb2 Qb7) 22. Bb2 Qb7 {[%emt 0:01:30]} (22... Nc7 $5 {[%cal Rb6a6]}) 23. Ne3 {[%emt 0:01:30]} Nb8 {[%emt 0:00:30] White must now prevent ...Ra6.} 24. Rc2 {[%emt 0:00:30]} (24. Rde2 $14) 24... Rxc2 $15 {[%emt 0:00:00]} 25. Nxc2 {[%emt 0:00:00]} b4 {[%emt 0:00:00]} 26. Ne3 {And now Nc4 would win.} e6 {[%emt 0:01:30]} (26... Kf7 {keeps more tension.} 27. Ng4 Nd7 28. Nxf6 Nxf6 29. Qg5 Qd5) 27. Ng4 $1 {[%emt 0:00:00][%csl LRe6,LRf6]} Be7 {[%emt 0:00:30]} 28. Rxe6 {[%emt 0:02:00]} Ra6 $2 {[%emt 0:00:30] [#]} (28... Kf7 $1 $11 {and Black is okay.} 29. d5 Nd7) 29. Rxe7 $1 $18 {[%emt 0:00:00][%mdl 512]} Qxe7 {[%emt 0:00:00]} 30. Qxb4 {[%emt 0:00:00] White is more active.} Rb6 {[%emt 0:01:00]} (30... Rxa2 $16 31. Qxb8+ Qf8 32. Nf6+ Kf7 33. Qxf8+ (33. Nxh7 $2 Qxb8 34. Ng5+ Ke7 $19) 33... Kxf8) 31. Qc4+ {[%emt 0:00:00]} Kf8 {[%emt 0:00:30]} 32. d5 {[%emt 0:01:04]} Nd7 $2 {[%emt 0:00:00]} (32... Qe1+ {keeps fighting.} 33. Kg2 Nd7) 33. Qc8+ Qe8 {[%emt 0:01:00]} 34. Bg7+ $2 $40 {[%emt 0:00:59][%mdl 128] White attacks with force.} Ke7 {[%emt 0:00:00]} (34... Kf7 $16 35. Nh6+ Ke7) 35. Qc7 {[%emt 0:01:27] Hoping for Nf6.} h5 $2 {[%emt 0:01:00]} (35... Kf7) 36. Nf6 {[%emt 0:00:00]} Qd8 {[%emt 0:00:00] [#]} 37. Qxa7 $2 {[%emt 0:00:01]} (37. Bf8+ $1 {[%mdl 512]} Qxf8 38. Nxd7 (38. Qxd7+ $2 {is the wrong capture.} Kxf6 39. Qxa7 Rb5 $19)) 37... Rb4 $2 {[%emt 0:01:00]} (37... Qc8 $18 38. Nxd7 Rb7) 38. Nxd7 {[%emt 0:00:47]} Qxd7 {[%emt 0:00:30] [#]} 39. Bf6+ $1 {[%emt 0:01:12][%mdl 512]} Ke8 {[%emt 0:00:00]} (39... Kxf6 40. Qxd7) 40. Qe3+ $2 {[%emt 0:00:00]} (40. Qa8+ {mates} Rb8 41. Qxb8+ Qc8 42. Qxc8+ Kf7 43. Qe6+ Kf8 44. Qe7+ Kg8 45. Qg7#) 40... Kf7 $16 {[%emt 0:01:00][%cal Ob4b5]} 41. Bc3 {[%emt 0:30:28]} Rb5 {[%emt 0:28:21] Weighted Error Value: White=0.56/Black=0.62} 1/2-1/2

[Event "Bangabandhu Premier Div League 2022"]
[Site "Dhaka"]
[Date "2022.12.01"]
[Round "2.4"]
[White "Harsha Bharathakoti"]
[Black "Idani, Pouya"]
[Result "0-1"]
[ECO "A21"]
[WhiteElo "2582"]
[BlackElo "2631"]
[Annotator "TA"]
[PlyCount "84"]
[EventDate "2022.11.30"]
[EventType "team-tourn"]
[EventCountry "BAN"]
[SourceTitle "playchess.com"]
[Source "ChessBase"]
[SourceQuality "1"]
[TimeControl "40/5400+30:1800+30"]

{[%evp 10,84,4,0,25,20,22,0,5,-21,-22,0,-3,-4,-35,-32,8,5,1,-20,-18,-22,9,6,41,0,0,-25,0,0,0,0,0,0,0,0,37,11,21,-13,-10,-22,-30,-27,-29,-112,-26,-100,-7,-59,-60,-59,-78,-109,-58,-85,-56,-175,-183,-188,-172,-229,-214,-297,-306,-322,-297,-296,-291,-672,-509,-29979,-29980,-29980,-29981,-29990,-29991]} 1. c4 {[%emt 0:00:07]} e5 {[%emt 0:01:32][%cal Be7e5,Be5e4][%mdl 32]} 2. Nc3 {[%emt 0:00:26]} d6 {[%emt 0:00:15]} 3. g3 {[%emt 0:01:50]} Be7 {[%emt 0:01:51]} 4. Bg2 {[%emt 0:12:13]} f5 {[%emt 0:00:07]} 5. d4 {[%emt 0:15:31]} Nf6 {[%emt 0:00:54]} 6. Nf3 {[%emt 0:01:32]} (6. dxe5 {simplifies} dxe5 7. Qxd8+ Bxd8 8. b3) 6... e4 {[%emt 0:00:16] A21: English Opening: 1...e5 2 Nc3.} 7. Ng5 {[%emt 0:11:49]} c6 {[%emt 0:00:31]} 8. h4 {[%emt 0:04:45]} d5 $5 {[%emt 0:09:33][%mdl 4] The position is equal. Exploring less charted territory.} 9. Qb3 {[%emt 0:06:26] [#]} h6 $146 {[%emt 0:11:45]} ({Predecessor:} 9... O-O 10. Nh3 Be6 11. Qxb7 dxc4 12. Nf4 Bf7 13. O-O Nbd7 14. Qxc6 Rc8 15. Qb5 Nb6 16. Qxf5 Qxd4 {1-0 (34) Thejkumar,M (2433)-Osmak,I (2438) Chess.com INT 2020}) 10. Nh3 {[%emt 0:00:22]} dxc4 {[%emt 0:00:28]} 11. Qxc4 {[%emt 0:00:49]} b5 {[%emt 0:00:10]} 12. Qb3 {[%emt 0:00:15]} (12. Nxb5 $2 cxb5 13. Qxb5+ Bd7 $19) 12... Qxd4 {[%emt 0:01:20]} (12... a5 $5 {[%cal Rd8d4]}) 13. Nf4 $1 {[%emt 0:14:04]} Qb4 {[%emt 0:04:16]} 14. Qc2 {[%emt 0:02:24]} O-O $1 {[%emt 0:02:30]} 15. a4 {[%emt 0:09:12]} Kh7 {[%emt 0:22:10]} 16. O-O {[%emt 0:04:10]} Na6 {[%emt 0:04:23]} 17. Bd2 {[%emt 0:05:28][%mdl 1024] White has compensation.} Qc4 {[%emt 0:02:31] Hoping for ...b4.} 18. b3 {[%emt 0:01:05] Inhibits b4.} Qc5 {[%emt 0:00:39] ...b4 is the strong threat.} (18... Nb4 $5 {[%cal Rb4c2]} 19. Qb2 Qf7 $15) 19. Be3 {[%emt 0:00:26] Prevents b4.} Qe5 {[%emt 0:00:33]} 20. h5 {[%emt 0:02:16]} Re8 {[%emt 0:07:34]} 21. axb5 {[%emt 0:02:58]} cxb5 {[%emt 0:01:08]} 22. Ng6 {[%emt 0:02:20]} Qc7 {[%emt 0:00:18] Strongly threatening ...b4.} 23. Rfc1 {[%emt 0:00:13]} Qb7 {[%emt 0:04:12]} 24. Bd4 {[%emt 0:01:13]} (24. Ra5 $5 {[%cal Ra5b5]}) 24... Bd8 {[%emt 0:02:52] White should prevent ...Nb4.} 25. Nf4 {[%emt 0:00:17]} Nb4 {[%emt 0:01:55]} 26. Qd2 {[%emt 0:00:40][%cal Oc3e4]} Nc6 {[%emt 0:00:42]} 27. Bc5 {[%emt 0:00:37]} (27. Bxf6 $11 Bxf6 28. Rab1) 27... a6 {[%emt 0:02:17]} (27... Bc7 $1 $17 {And now ...b4 would win.} 28. Rd1 Be5) 28. Ra2 {[%emt 0:00:30]} (28. Ncd5 $11) 28... Ne5 {[%emt 0:03:16]} ({Black should play} 28... Bc7 $17 29. f3 e3) 29. Rac2 {[%emt 0:00:30]} (29. Bd4 $11 Bd7 30. Rac2) 29... Qf7 $15 {[%emt 0:00:25][%csl LRb3,LRh5]} 30. Bd4 {[%emt 0:00:31] Black must now prevent Bxe5.} Bb7 $1 {[%emt 0:00:23][%cal Bc8b7,Bb7d5,Bd5b3,Bb3c2][%mdl 32]} (30... Nxh5 31. Bxe5 Bb7 32. Qd4 Nxf4 33. Bxf4 $18 (33. gxf4 Re7 $16)) 31. Bxe5 {[%emt 0:00:25]} Rxe5 {[%emt 0:00:06]} 32. Qd4 {[%emt 0:00:33] Against e3} Re8 {[%emt 0:02:53]} 33. Nd1 {[%emt 0:00:04] [#]} ({White should try} 33. e3 $1 $15) 33... Nd5 $1 $19 {[%emt 0:06:25]} (33... Qxb3 34. Ne3 Qa4 35. Qxa4 bxa4 36. Nxf5 $14) (33... Nxh5 34. Nxh5 Qxh5 35. Rc7 Bxc7 36. Rxc7 $11) 34. Nxd5 {[%emt 0:00:43]} Bxd5 {[%emt 0:00:21]} ({Worse is} 34... Qxd5 35. Qxd5 Bxd5 36. b4 $17) 35. Ne3 {[%emt 0:00:43]} (35. b4 {was called for.}) 35... Bxb3 {[%emt 0:01:30] This pair of bishops is nice.} 36. Bh3 {[%emt 0:00:29]} Bxc2 {[%emt 0:01:27]} (36... Qxh5 37. Bxf5+ (37. Rc7 $2 Bxc7 38. Rxc7 Bf7 $19) 37... Kg8 38. Rc6 $16) 37. Bxf5+ {[%emt 0:00:03] [#]} Kh8 $1 {[%emt 0:00:05]} 38. Bg6 {[%emt 0:00:57]} Qf6 {[%emt 0:00:24]} 39. Qd5 {[%emt 0:00:30]} (39. Qxf6 Bxf6 40. Bxe8 Rxe8 41. Rxc2) 39... Rf8 {[%emt 0:01:11]} 40. Qxa8 {[%emt 0:00:33]} (40. Ng4 $19 Qb2 41. Rxc2 Qxc2 42. Qxa8 Qxe2 43. Qxe4 Qxe4 44. Bxe4) 40... Qxf2+ {[%emt 0:00:05] Black mates.} 41. Kh1 {[%emt 0:30:01]} Qxe3 {[%emt 0:30:07]} 42. Rxc2 {[%emt 0:00:18]} Qxg3 {[%emt 0:00:10] Weighted Error Value: White=0.45/Black=0.21 (precise)} 0-1

[Event "Bangabandhu Premier Div League 2022"]
[Site "Dhaka"]
[Date "2022.12.01"]
[Round "2.4"]
[White "Jabed Al Azad"]
[Black "Jamal Uddin"]
[Result "0-1"]
[ECO "B41"]
[WhiteElo "2084"]
[BlackElo "2092"]
[Annotator "TA"]
[PlyCount "91"]
[EventDate "2022.12.01"]
[EventCountry "BAN"]
[SourceTitle "playchess.com"]
[Source "ChessBase"]
[SourceQuality "1"]
[TimeControl "40/5400+30:1800+30"]

{[%evp 13,91,28,79,24,59,50,55,61,102,54,58,56,60,52,57,31,59,0,8,0,0,0,0,-11,-3,-27,-22,-58,-39,-55,0,0,0,0,0,0,0,-21,38,36,41,10,35,0,56,38,67,46,75,-23,196,195,361,356,333,349,779,775,697,101,82,70,78,84,76,60,80,0,53,0,123,-632,-558,-636,-616,-602,-567,-29979,-29980,-29995]} 1. e4 {[%emt 0:00:03]} c5 {[%emt 0:00:41]} 2. Nf3 {[%emt 0:00:02]} e6 {[%emt 0:00:35]} 3. d4 {[%emt 0:00:11]} cxd4 {[%emt 0:00:20]} 4. Nxd4 {[%emt 0:00:02]} a6 {[%emt 0:00:30]} 5. c4 {[%emt 0:00:15]} Qc7 {[%emt 0:01:42]} 6. Bd3 {[%emt 0:00:31]} Nf6 {[%emt 1:29:42]} 7. Nc3 {[%emt 1:32:56]} b6 {[%emt 0:00:30]} (7... Nc6 $11 8. Nf3 b6) 8. Qe2 {[%emt 0:00:30] B41: Sicilian: Kan Variation: 5 c4.} (8. f4 $16) 8... d6 {[%emt 0:00:00]} 9. O-O Nbd7 {[%emt 0:00:00][%cal Bb8d7,Bd7f8,Bf8g6][%mdl 32]} 10. f4 {Inhibits Ne5. White is slightly better.} Bb7 {[%emt 0:01:30]} 11. Bd2 {[%emt 0:01:30]} (11. g4 $16) 11... Be7 $14 {[%emt 0:00:30]} 12. b4 {[%emt 0:00:30]} O-O {[%emt 0:00:00]} 13. Rac1 {[%emt 0:00:30]} Rfe8 {[%emt 0:01:00] [#]} 14. Rfe1 $146 {[%emt 0:00:30]} ({Predecessor:} 14. Nf3 Rac8 15. a3 Bf8 16. Kh1 Qb8 17. Rce1 g6 18. e5 Nh5 19. Be4 f5 20. exf6 Ndxf6 {1-0 (36) Spraggett,K (2511)-Pinho,P (2200) Vila Nova de Famalicao 2019}) 14... Nf8 {[%emt 0:00:00]} 15. f5 ({White should play} 15. a3 $14) 15... N6d7 {[%emt 0:01:00]} 16. fxe6 {[%emt 0:00:00]} fxe6 {[%emt 0:00:30]} (16... Nxe6 17. Nf5 $14) 17. Nf3 {[%emt 0:01:30]} Bf6 {[%emt 0:00:30]} 18. Bf4 {[%emt 0:00:30]} Ng6 {[%emt 0:00:00]} 19. Bg3 {[%emt 0:00:00]} Nde5 {[%emt 0:00:00]} 20. Nb1 {[%emt 0:00:00]} Rf8 {[%emt 0:00:00]} 21. Nbd2 {[%emt 0:00:00][%cal Oc4c5]} Rae8 {[%emt 0:00:00]} ({Better is} 21... a5 $15 22. b5 Nd7) 22. Kh1 $11 {[%emt 0:00:00][%cal Oc4c5]} Qd7 {[%emt 0:00:00]} 23. b5 {[%emt 0:00:00]} axb5 {[%emt 0:00:00]} 24. cxb5 {[%emt 0:00:00]} Rc8 {[%emt 0:00:00]} 25. Nc4 {[%emt 0:00:00] And now Nfxe5 would win.} Nxc4 {[%emt 0:00:00]} (25... Qxb5 $2 26. Ncxe5 (26. Nxd6 $2 Qxd3 27. Nxc8 Qxe2 $19) 26... Qa4 27. Nxg6 hxg6 28. Bxd6 $18) (25... Nxd3 $1 $11 26. Qxd3 Qxb5 27. Qxd6 Rc6) 26. Bxc4 $14 {[%emt 0:00:00]} Rfe8 {[%emt 0:00:00]} 27. Bd3 {[%emt 0:00:00]} Rf8 {[%emt 0:00:00]} (27... Rxc1 {simplifies} 28. Rxc1 e5 29. a4 Kh8) 28. Bc4 {[%emt 0:00:00]} d5 {[%emt 0:00:00]} (28... Rfe8 $11) 29. exd5 {[%emt 0:00:00]} exd5 {[%emt 0:00:00]} 30. Bd3 {[%emt 0:00:00]} d4 {[%emt 0:06:30]} 31. Nd2 {[%emt 0:00:00]} (31. Rxc8 $16 Rxc8 32. a4) 31... Bg5 $2 {[%emt 0:00:00]} (31... Rce8 $11 {and Black has nothing to worry.} 32. Qd1 Rxe1+ 33. Qxe1 Bd5) 32. Rxc8 $18 {[%emt 0:00:00]} Rxc8 {[%emt 0:00:00]} (32... Qxc8 33. Nc4 Be3 34. Nxe3 (34. Nxb6 Qd8 $16) 34... dxe3) 33. Nc4 {[%emt 0:07:30]} Rf8 {[%emt 0:00:00]} 34. Nxb6 {[%emt 0:00:00]} Qd8 {[%emt 0:00:00]} (34... Qh3 35. Rf1 Rxf1+ 36. Qxf1 Bd8) 35. Qe6+ {[%emt 0:00:00]} Kh8 {[%emt 0:00:00]} 36. Nc4 $2 {[%emt 0:00:00]} ({And not} 36. Bxg6 hxg6 37. Nd7 (37. Qxg6 d3 $11) 37... Bc8 38. Qh3+ Kg8 39. Qe6+ Kh8 40. Qh3+ Kg8 41. Qe6+ Kh8 $11) (36. Nd7 $18 {and the rest is easy.} Nh4 37. Nxf8 Bxg2+ 38. Kg1) 36... Bd5 $16 {[%emt 0:00:00]} 37. Qe2 {[%emt 0:00:00] Hoping for Ne5.} Nf4 {[%emt 0:00:00]} 38. Bxf4 {[%emt 0:00:00]} Bxf4 {[%emt 0:00:00]} 39. Qh5 {[%emt 0:00:00][%csl Gd3][%cal Rh5h7] Against Qh4} Bh6 $1 {[%emt 0:00:00]} 40. Qe2 {[%emt 0:00:00]} (40. Rf1 $16 {Threatens to win with Rxf8+.} Rxf1+ 41. Bxf1) 40... Qh4 {[%emt 0:00:00]} (40... Bf4 $11 41. Qh5 Bh6) 41. Ne5 {[%emt 0:34:00]} (41. Kg1 Bf4 42. h3 Qg3 43. Qf1 Qh2+ 44. Kf2 {[#]} Bxg2 $1 {[%mdl 512]} 45. Qxg2 Bg3+ 46. Ke2 Qxg2+ 47. Kd1 Bxe1 48. Be2 Rf2 49. Ne5 Rxe2 50. Nf7+ Kg8 51. Kc1 Kxf7 52. Kd1 Rxa2 53. Kxe1 Qh1#) (41. Nd2 $1 $14) 41... Rf2 {[%emt 0:18:34]} (41... Bf4 $11 {keeps the balance.} 42. Nf3 Bxf3 43. gxf3 Bxh2) 42. Nf7+ $2 {[%emt 0:00:00][%mdl 8192]} Bxf7 $19 {[%emt 0:00:23] A strong pair of Bishops.} 43. Qe8+ {[%emt 0:00:00]} Bg8 $1 {[%emt 0:00:02] ( -> ...Bf4)} 44. Bc4 {[%emt 0:00:00][%csl Gc4][%cal Re8g8] [#]} Rf8 {[%emt 0:00:15][%mdl 512]} 45. g3 {[%emt 0:00:00][%cal Oe8f8]} (45. Qxf8 Qxe1+) 45... Qf6 {[%emt 0:00:41]} (45... Rxe8 $2 46. Rxe8 $18) 46. Ra1 {[%emt 0:02:30] Weighted Error Value: White=0.62/Black=0.35} 0-1